[Event "*** Titled Tuesday Blitz"]
[Site "Chess.com"]
[Date "2020.12.29"]
[Round "3"]
[White "Keures"]
[Black "geordie_derraugh"]
[Result "0-1"]
[WhiteElo "2327"]
[BlackElo "2533"]
[TimeControl "180+1"]
[EndTime "10:29:31 PST"]
[Termination "geordie_derraugh won on time"]

1. d4 {[%clk 0:03:00.9]} 1... Nf6 {[%clk 0:02:59.7]} 2. c4 {[%clk 0:02:58.3]}
2... e6 {[%clk 0:02:59.9]} 3. Nc3 {[%clk 0:02:58]} 3... Bb4 {[%clk 0:03:00.1]}
4. Qc2 {[%clk 0:02:50.8]} 4... c5 {[%clk 0:02:59.6]} 5. a3 {[%clk 0:02:50.4]}
5... Bxc3+ {[%clk 0:02:57.4]} 6. Qxc3 {[%clk 0:02:50.4]} 6... cxd4 {[%clk
0:02:57.5]} 7. Qxd4 {[%clk 0:02:51]} 7... Nc6 {[%clk 0:02:56.8]} 8. Qc3 {[%clk
0:02:51.6]} 8... O-O {[%clk 0:02:54.2]} 9. Nf3 {[%clk 0:02:50.8]} 9... d5 {[%clk
0:02:54]} 10. e3 {[%clk 0:02:47.5]} 10... Ne4 {[%clk 0:02:49.4]} 11. Qc2 {[%clk
0:02:47.4]} 11... Qf6 {[%clk 0:02:43.7]} 12. Bd3 {[%clk 0:02:38.7]} 12... Ng5
{[%clk 0:02:24]} 13. Nxg5 {[%clk 0:02:29.4]} 13... Qxg5 {[%clk 0:02:24.9]} 14.
O-O {[%clk 0:02:25]} 14... Qh5 {[%clk 0:02:24.1]} 15. b4 {[%clk 0:02:13.2]}
15... dxc4 {[%clk 0:02:21.2]} 16. Bxc4 {[%clk 0:02:11.7]} 16... e5 {[%clk
0:02:20.4]} 17. Bb2 {[%clk 0:02:07.4]} 17... Bf5 {[%clk 0:02:19.5]} 18. Bd3
{[%clk 0:02:05.5]} 18... Bxd3 {[%clk 0:02:17.5]} 19. Qxd3 {[%clk 0:02:05.8]}
19... Rad8 {[%clk 0:02:07.9]} 20. Qe4 {[%clk 0:02:02.8]} 20... Rd6 {[%clk
0:01:50.8]} 21. b5 {[%clk 0:01:47.9]} 21... Rh6 {[%clk 0:01:44.7]} 22. h3 {[%clk
0:01:45.1]} 22... Nd8 {[%clk 0:01:33.7]} 23. Qxe5 {[%clk 0:01:41.7]} 23... Qg6
{[%clk 0:01:33.3]} 24. Qg3 {[%clk 0:01:25.4]} 24... Qxg3 {[%clk 0:01:28.9]} 25.
fxg3 {[%clk 0:01:26.3]} 25... Re6 {[%clk 0:01:18.1]} 26. Bd4 {[%clk 0:01:25.5]}
26... b6 {[%clk 0:01:10.4]} 27. Rac1 {[%clk 0:01:24.5]} 27... Re7 {[%clk
0:01:09.6]} 28. Rc4 {[%clk 0:01:11.2]} 28... Ne6 {[%clk 0:01:09]} 29. Rfc1
{[%clk 0:01:01.2]} 29... f5 {[%clk 0:01:00.7]} 30. Be5 {[%clk 0:00:52]} 30...
Rfe8 {[%clk 0:00:49.2]} 31. Rc8 {[%clk 0:00:45.6]} 31... Nc5 {[%clk 0:00:44.4]}
32. Bd6 {[%clk 0:00:30.5]} 32... Rxe3 {[%clk 0:00:21.7]} 33. Rxe8+ {[%clk
0:00:27.2]} 33... Rxe8 {[%clk 0:00:22.6]} 34. Bxc5 {[%clk 0:00:27.6]} 34... bxc5
{[%clk 0:00:23]} 35. Rxc5 {[%clk 0:00:28.1]} 35... Re3 {[%clk 0:00:23.3]} 36. a4
{[%clk 0:00:25.3]} 36... Rxg3 {[%clk 0:00:15.6]} 37. Rc8+ {[%clk 0:00:22.5]}
37... Kf7 {[%clk 0:00:15.6]} 38. Rc7+ {[%clk 0:00:23.1]} 38... Kf6 {[%clk
0:00:15.6]} 39. Rxa7 {[%clk 0:00:24]} 39... Rb3 {[%clk 0:00:14]} 40. Ra6+ {[%clk
0:00:23.2]} 40... Kg5 {[%clk 0:00:13.9]} 41. b6 {[%clk 0:00:23.5]} 41... Kf4
{[%clk 0:00:13.7]} 42. Kh2 {[%clk 0:00:23]} 42... g5 {[%clk 0:00:13.5]} 43. a5
{[%clk 0:00:22.8]} 43... g4 {[%clk 0:00:13.7]} 44. hxg4 {[%clk 0:00:20.2]} 44...
fxg4 {[%clk 0:00:13.7]} 45. Ra7 {[%clk 0:00:20.2]} 45... Rb1 {[%clk 0:00:04.8]}
46. Rf7+ {[%clk 0:00:17]} 46... Kg5 {[%clk 0:00:04.2]} 47. Rg7+ {[%clk
0:00:14.7]} 47... Kf4 {[%clk 0:00:03.8]} 48. b7 {[%clk 0:00:08.6]} 48... h5
{[%clk 0:00:03.8]} 49. Rf7+ {[%clk 0:00:07.9]} 49... Kg5 {[%clk 0:00:03.7]} 50.
Kg3 {[%clk 0:00:04.7]} 50... Rb2 {[%clk 0:00:03.1]} 51. a6 {[%clk 0:00:03.8]}
51... h4+ {[%clk 0:00:03.5]} 52. Kh2 {[%clk 0:00:04.3]} 52... h3 {[%clk
0:00:02.9]} 53. a7 {[%clk 0:00:02]} 53... Rxg2+ {[%clk 0:00:02.6]} 54. Kh1
{[%clk 0:00:02.5]} 54... Ra2 {[%clk 0:00:02]} 55. a8=Q {[%clk 0:00:02.4]} 55...
Rb2 {[%clk 0:00:02.4]} 56. b8=Q {[%clk 0:00:00.7]} 56... Rb1+ {[%clk 0:00:02.7]}
0-1

[Event "*** Titled Tuesday Blitz"]
[Site "Chess.com"]
[Date "2020.12.29"]
[Round "3"]
[White "ChristopherYoo"]
[Black "SergeyShtyka"]
[Result "1-0"]
[WhiteElo "2871"]
[BlackElo "2457"]
[TimeControl "180+1"]
[EndTime "10:29:32 PST"]
[Termination "ChristopherYoo won by checkmate"]

1. d4 {[%clk 0:03:00.9]} 1... c5 {[%clk 0:02:59.9]} 2. dxc5 {[%clk 0:02:55]}
2... e5 {[%clk 0:02:59.6]} 3. Nf3 {[%clk 0:02:41.1]} 3... Nc6 {[%clk 0:02:58.5]}
4. Nc3 {[%clk 0:02:29.1]} 4... Bxc5 {[%clk 0:02:56.8]} 5. Ne4 {[%clk 0:02:26]}
5... Be7 {[%clk 0:02:56.4]} 6. Nd6+ {[%clk 0:02:26]} 6... Bxd6 {[%clk
0:02:56.5]} 7. Qxd6 {[%clk 0:02:26.9]} 7... Qe7 {[%clk 0:02:56.3]} 8. Qxe7+
{[%clk 0:02:12.8]} 8... Ngxe7 {[%clk 0:02:57.2]} 9. e4 {[%clk 0:02:11.8]} 9...
d5 {[%clk 0:02:56.9]} 10. exd5 {[%clk 0:02:11.8]} 10... Nxd5 {[%clk 0:02:57.3]}
11. Bb5 {[%clk 0:02:12.4]} 11... f6 {[%clk 0:02:50.4]} 12. O-O {[%clk
0:02:11.9]} 12... Bd7 {[%clk 0:02:47.8]} 13. Rd1 {[%clk 0:02:10.7]} 13... Nc7
{[%clk 0:02:30.7]} 14. Be2 {[%clk 0:02:03.8]} 14... O-O-O {[%clk 0:02:28.8]} 15.
Be3 {[%clk 0:01:58]} 15... Bf5 {[%clk 0:02:21.2]} 16. c3 {[%clk 0:01:42.9]}
16... Rxd1+ {[%clk 0:02:19.7]} 17. Rxd1 {[%clk 0:01:42.2]} 17... Rd8 {[%clk
0:02:18.3]} 18. Rxd8+ {[%clk 0:01:36.9]} 18... Kxd8 {[%clk 0:02:18.4]} 19. Nd2
{[%clk 0:01:24.7]} 19... Nd5 {[%clk 0:02:14.9]} 20. Bc5 {[%clk 0:01:23.4]} 20...
Nf4 {[%clk 0:02:01]} 21. Bf3 {[%clk 0:01:22.9]} 21... Kc7 {[%clk 0:01:23.4]} 22.
h4 {[%clk 0:01:09]} 22... Ne6 {[%clk 0:01:17.3]} 23. Ba3 {[%clk 0:01:08.3]}
23... Bd3 {[%clk 0:01:14.6]} 24. g3 {[%clk 0:00:50.2]} 24... b5 {[%clk
0:01:07.9]} 25. Bd5 {[%clk 0:00:40.5]} 25... Ncd8 {[%clk 0:00:56.6]} 26. Ne4
{[%clk 0:00:34.5]} 26... Bxe4 {[%clk 0:00:33.5]} 27. Bxe4 {[%clk 0:00:33.8]}
27... g6 {[%clk 0:00:31.8]} 28. Bd5 {[%clk 0:00:28.3]} 28... a5 {[%clk
0:00:28.5]} 29. Kf1 {[%clk 0:00:21.2]} 29... f5 {[%clk 0:00:27.1]} 30. Ke2
{[%clk 0:00:19]} 30... Kd7 {[%clk 0:00:25.3]} 31. b3 {[%clk 0:00:12.9]} 31...
Nc6 {[%clk 0:00:24.6]} 32. Ke3 {[%clk 0:00:10.8]} 32... b4 {[%clk 0:00:22.8]}
33. Bxc6+ {[%clk 0:00:05.8]} 33... Kxc6 {[%clk 0:00:22.7]} 34. cxb4 {[%clk
0:00:06.3]} 34... Nd4 {[%clk 0:00:20.7]} 35. Kd3 {[%clk 0:00:06.1]} 35... Nb5
{[%clk 0:00:12]} 36. Bb2 {[%clk 0:00:05.3]} 36... axb4 {[%clk 0:00:12.4]} 37.
Kc4 {[%clk 0:00:03.2]} 37... Nd6+ {[%clk 0:00:10.8]} 38. Kxb4 {[%clk 0:00:03.5]}
38... Ne4 {[%clk 0:00:11.2]} 39. Bxe5 {[%clk 0:00:02.5]} 39... Nxf2 {[%clk
0:00:11.7]} 40. Kc4 {[%clk 0:00:03.2]} 40... h6 {[%clk 0:00:11]} 41. Bf4 {[%clk
0:00:03.2]} 41... g5 {[%clk 0:00:08.8]} 42. hxg5 {[%clk 0:00:03.4]} 42... hxg5
{[%clk 0:00:09.3]} 43. Bxg5 {[%clk 0:00:04.3]} 43... Ne4 {[%clk 0:00:09.8]} 44.
Bf4 {[%clk 0:00:04.9]} 44... Nf6 {[%clk 0:00:07.3]} 45. b4 {[%clk 0:00:04.9]}
45... Nh5 {[%clk 0:00:06.2]} 46. a4 {[%clk 0:00:04.6]} 46... Nf6 {[%clk
0:00:05.7]} 47. a5 {[%clk 0:00:04.7]} 47... Kb7 {[%clk 0:00:06.2]} 48. b5 {[%clk
0:00:04.8]} 48... Nd7 {[%clk 0:00:06.2]} 49. Kd5 {[%clk 0:00:02.7]} 49... Ka8
{[%clk 0:00:06.3]} 50. Ke6 {[%clk 0:00:02.7]} 50... Nc5+ {[%clk 0:00:06.4]} 51.
Kxf5 {[%clk 0:00:03.4]} 51... Nb3 {[%clk 0:00:06.9]} 52. a6 {[%clk 0:00:03.6]}
52... Nd4+ {[%clk 0:00:07.2]} 53. Ke4 {[%clk 0:00:03.9]} 53... Nxb5 {[%clk
0:00:07.5]} 54. g4 {[%clk 0:00:04.5]} 54... Nc3+ {[%clk 0:00:07.7]} 55. Ke5
{[%clk 0:00:04.6]} 55... Ne2 {[%clk 0:00:05.7]} 56. g5 {[%clk 0:00:04.5]} 56...
Ng1 {[%clk 0:00:06.1]} 57. g6 {[%clk 0:00:04.7]} 57... Nf3+ {[%clk 0:00:06.5]}
58. Kf6 {[%clk 0:00:05]} 58... Nd4 {[%clk 0:00:03.2]} 59. g7 {[%clk 0:00:04.8]}
59... Ne6 {[%clk 0:00:01.9]} 60. g8=Q+ {[%clk 0:00:04.8]} 60... Ka7 {[%clk
0:00:02.3]} 61. Qxe6 {[%clk 0:00:05]} 61... Ka8 {[%clk 0:00:02.8]} 62. Qc6+
{[%clk 0:00:05.6]} 62... Ka7 {[%clk 0:00:02.9]} 63. Qb7# {[%clk 0:00:06.5]} 1-0

[Event "*** Titled Tuesday Blitz"]
[Site "Chess.com"]
[Date "2020.12.29"]
[Round "3"]
[White "AryanTari"]
[Black "FlySooHigh"]
[Result "1/2-1/2"]
[WhiteElo "2884"]
[BlackElo "2660"]
[TimeControl "180+1"]
[EndTime "10:29:34 PST"]
[Termination "Game drawn - insufficient material"]

1. e4 {[%clk 0:02:57.7]} 1... c5 {[%clk 0:02:59]} 2. Nc3 {[%clk 0:02:56.7]} 2...
d6 {[%clk 0:02:56.6]} 3. f4 {[%clk 0:02:55.3]} 3... g6 {[%clk 0:02:55.2]} 4. Nf3
{[%clk 0:02:55.9]} 4... Bg7 {[%clk 0:02:54.8]} 5. Bb5+ {[%clk 0:02:54.6]} 5...
Bd7 {[%clk 0:02:51.2]} 6. Bc4 {[%clk 0:02:55]} 6... Nc6 {[%clk 0:02:42.6]} 7. d3
{[%clk 0:02:55.3]} 7... Nh6 {[%clk 0:02:24.5]} 8. O-O {[%clk 0:02:50.4]} 8...
O-O {[%clk 0:02:21]} 9. f5 {[%clk 0:02:50.1]} 9... gxf5 {[%clk 0:02:14.3]} 10.
Qe1 {[%clk 0:02:50.7]} 10... Ng4 {[%clk 0:02:09.5]} 11. Bg5 {[%clk 0:02:39.5]}
11... h6 {[%clk 0:02:04.3]} 12. Bh4 {[%clk 0:02:39.7]} 12... Kh8 {[%clk
0:01:50]} 13. Nd5 {[%clk 0:02:35.6]} 13... Nge5 {[%clk 0:01:05.9]} 14. Nxe5
{[%clk 0:02:31.5]} 14... Bxe5 {[%clk 0:01:05.3]} 15. exf5 {[%clk 0:02:27.8]}
15... f6 {[%clk 0:00:59.3]} 16. c3 {[%clk 0:02:22.9]} 16... Kh7 {[%clk
0:00:57.1]} 17. Qe2 {[%clk 0:02:17.4]} 17... Na5 {[%clk 0:00:44]} 18. Ne3 {[%clk
0:01:38]} 18... Nxc4 {[%clk 0:00:38.3]} 19. dxc4 {[%clk 0:01:38.6]} 19... Rg8
{[%clk 0:00:36]} 20. Rae1 {[%clk 0:01:33.2]} 20... Bc6 {[%clk 0:00:35.1]} 21.
Nd5 {[%clk 0:01:33.4]} 21... Bxd5 {[%clk 0:00:31.6]} 22. cxd5 {[%clk 0:01:33.2]}
22... Rg7 {[%clk 0:00:31.1]} 23. Rf3 {[%clk 0:01:20.8]} 23... Qa5 {[%clk
0:00:28.2]} 24. Rh3 {[%clk 0:01:09.6]} 24... Rag8 {[%clk 0:00:21.6]} 25. Bg3
{[%clk 0:01:05.6]} 25... Rg5 {[%clk 0:00:13.9]} 26. a3 {[%clk 0:00:50.5]} 26...
Qa4 {[%clk 0:00:13.3]} 27. c4 {[%clk 0:00:44.9]} 27... a6 {[%clk 0:00:10.3]} 28.
Rh4 {[%clk 0:00:27]} 28... Qa5 {[%clk 0:00:08]} 29. Rf1 {[%clk 0:00:20.7]} 29...
b5 {[%clk 0:00:06.7]} 30. Rf2 {[%clk 0:00:19.7]} 30... bxc4 {[%clk 0:00:06.3]}
31. Bxe5 {[%clk 0:00:18.1]} 31... dxe5 {[%clk 0:00:05.9]} 32. Rxc4 {[%clk
0:00:16.4]} 32... Qb5 {[%clk 0:00:05.8]} 33. Rc2 {[%clk 0:00:06.5]} 33... Qb6
{[%clk 0:00:06]} 34. Qe3 {[%clk 0:00:06]} 34... Qa5 {[%clk 0:00:05.3]} 35. h3
{[%clk 0:00:04.6]} 35... Qa4 {[%clk 0:00:05.3]} 36. Kh2 {[%clk 0:00:03.6]} 36...
Rg3 {[%clk 0:00:04.5]} 37. Qe2 {[%clk 0:00:04.2]} 37... R3g5 {[%clk 0:00:04.1]}
38. Rc4 {[%clk 0:00:04.5]} 38... Qb3 {[%clk 0:00:04]} 39. Rc3 {[%clk 0:00:04.5]}
39... Qa2 {[%clk 0:00:04.1]} 40. Qc4 {[%clk 0:00:04.4]} 40... Qb1 {[%clk
0:00:04.1]} 41. Qxc5 {[%clk 0:00:03.4]} 41... Rxf5 {[%clk 0:00:04.3]} 42. Qe3
{[%clk 0:00:03]} 42... Rfg5 {[%clk 0:00:03.7]} 43. Qd3+ {[%clk 0:00:02.6]} 43...
Qxd3 {[%clk 0:00:04.3]} 44. Rxd3 {[%clk 0:00:03.5]} 44... Rd8 {[%clk 0:00:04.2]}
45. Rfd2 {[%clk 0:00:03.4]} 45... e4 {[%clk 0:00:04.5]} 46. Rd4 {[%clk
0:00:03.2]} 46... f5 {[%clk 0:00:04.3]} 47. d6 {[%clk 0:00:02]} 47... exd6
{[%clk 0:00:03.9]} 48. Rxd6 {[%clk 0:00:02.9]} 48... Rxd6 {[%clk 0:00:04.4]} 49.
Rxd6 {[%clk 0:00:03.8]} 49... Rg6 {[%clk 0:00:05.3]} 50. Rxg6 {[%clk 0:00:03.8]}
50... Kxg6 {[%clk 0:00:06.2]} 51. b4 {[%clk 0:00:03.8]} 51... Kf6 {[%clk
0:00:06.4]} 52. a4 {[%clk 0:00:03.4]} 52... Ke6 {[%clk 0:00:07.1]} 53. Kg3
{[%clk 0:00:02.6]} 53... Kd5 {[%clk 0:00:06.4]} 54. Kf4 {[%clk 0:00:02.4]} 54...
h5 {[%clk 0:00:06.8]} 55. b5 {[%clk 0:00:01.4]} 55... axb5 {[%clk 0:00:06.5]}
56. axb5 {[%clk 0:00:02.3]} 56... Kc5 {[%clk 0:00:06.7]} 57. g4 {[%clk
0:00:02.5]} 57... fxg4 {[%clk 0:00:06.5]} 58. hxg4 {[%clk 0:00:02.9]} 58... hxg4
{[%clk 0:00:06.7]} 59. Kxg4 {[%clk 0:00:03.3]} 59... Kxb5 {[%clk 0:00:06.8]} 60.
Kf4 {[%clk 0:00:04]} 60... Kc4 {[%clk 0:00:07.7]} 61. Kxe4 {[%clk 0:00:04.5]}
1/2-1/2

[Event "*** Titled Tuesday Blitz"]
[Site "Chess.com"]
[Date "2020.12.29"]
[Round "3"]
[White "Storne89"]
[Black "Koalaskakistis"]
[Result "1-0"]
[WhiteElo "2590"]
[BlackElo "2387"]
[TimeControl "180+1"]
[EndTime "10:29:34 PST"]
[Termination "Storne89 won by resignation"]

1. e4 {[%clk 0:03:00.9]} 1... e6 {[%clk 0:02:52.5]} 2. d4 {[%clk 0:03:00.5]}
2... d5 {[%clk 0:02:43.6]} 3. Nc3 {[%clk 0:03:00.5]} 3... Nf6 {[%clk 0:02:29.1]}
4. Bg5 {[%clk 0:02:57]} 4... dxe4 {[%clk 0:02:26.2]} 5. Nxe4 {[%clk 0:02:56.4]}
5... Be7 {[%clk 0:02:25.5]} 6. Bxf6 {[%clk 0:02:56.4]} 6... gxf6 {[%clk
0:02:26.1]} 7. g3 {[%clk 0:02:56.1]} 7... f5 {[%clk 0:02:21.6]} 8. Nc3 {[%clk
0:02:55.4]} 8... Bf6 {[%clk 0:02:11.3]} 9. Nf3 {[%clk 0:02:43.3]} 9... Nc6
{[%clk 0:02:07.5]} 10. Ne2 {[%clk 0:02:38.6]} 10... b6 {[%clk 0:01:52.1]} 11.
Bg2 {[%clk 0:02:36.1]} 11... Bb7 {[%clk 0:01:52.1]} 12. O-O {[%clk 0:02:36.8]}
12... O-O {[%clk 0:01:50.7]} 13. c3 {[%clk 0:02:27.4]} 13... a5 {[%clk
0:01:49.6]} 14. Nf4 {[%clk 0:02:25]} 14... Ne7 {[%clk 0:01:44.7]} 15. Nh5 {[%clk
0:02:19.7]} 15... Ng6 {[%clk 0:01:37.4]} 16. Qd2 {[%clk 0:02:18.4]} 16... Bxf3
{[%clk 0:01:19.2]} 17. Bxf3 {[%clk 0:02:14.8]} 17... Bg5 {[%clk 0:01:20.1]} 18.
Qe2 {[%clk 0:02:08.4]} 18... Rc8 {[%clk 0:01:18.9]} 19. Rad1 {[%clk 0:02:04.7]}
19... Qe7 {[%clk 0:01:14]} 20. Rfe1 {[%clk 0:02:03.4]} 20... c5 {[%clk
0:01:12.7]} 21. h4 {[%clk 0:01:55.4]} 21... Bh6 {[%clk 0:01:11.2]} 22. d5 {[%clk
0:01:54.6]} 22... e5 {[%clk 0:01:07.6]} 23. d6 {[%clk 0:01:54.9]} 23... Qd8
{[%clk 0:01:00.8]} 24. Bd5 {[%clk 0:01:46.3]} 24... Kh8 {[%clk 0:00:51.1]} 25.
Qc2 {[%clk 0:01:45.5]} 25... e4 {[%clk 0:00:47.9]} 26. Qb3 {[%clk 0:01:45.4]}
26... Ne5 {[%clk 0:00:40]} 27. Kg2 {[%clk 0:01:22.6]} 27... Qxd6 {[%clk
0:00:30.5]} 28. Bxf7 {[%clk 0:01:18.1]} 28... Qc6 {[%clk 0:00:24.1]} 29. Bd5
{[%clk 0:01:17.6]} 29... Qg6 {[%clk 0:00:23.8]} 30. Be6 {[%clk 0:00:59.4]} 30...
Qxh5 {[%clk 0:00:22.7]} 31. Bxc8 {[%clk 0:00:59.5]} 31... Qf3+ {[%clk
0:00:22.7]} 32. Kg1 {[%clk 0:00:59.2]} 32... e3 {[%clk 0:00:22.1]} 33. Qc2
{[%clk 0:00:56.2]} 33... Ng4 {[%clk 0:00:21.9]} 34. fxe3 {[%clk 0:00:56.5]}
34... Bxe3+ {[%clk 0:00:21.3]} 35. Rxe3 {[%clk 0:00:56.9]} 35... Qxe3+ {[%clk
0:00:20.3]} 36. Kg2 {[%clk 0:00:57.4]} 36... Rxc8 {[%clk 0:00:16.8]} 37. Qxf5
{[%clk 0:00:51.6]} 37... Qd2+ {[%clk 0:00:10.6]} 38. Rxd2 {[%clk 0:00:51.4]}
38... Ne3+ {[%clk 0:00:10.4]} 39. Kf3 {[%clk 0:00:51]} 39... Nxf5 {[%clk
0:00:11.3]} 40. Rd5 {[%clk 0:00:50.9]} 40... Ne7 {[%clk 0:00:10.2]} 41. Rd6
{[%clk 0:00:50.8]} 41... Nc6 {[%clk 0:00:10.2]} 42. Kf4 {[%clk 0:00:49.3]} 42...
Kg7 {[%clk 0:00:10.4]} 43. Rd7+ {[%clk 0:00:48.1]} 43... Kg6 {[%clk 0:00:09]}
44. Rd6+ {[%clk 0:00:48.1]} 44... Kf7 {[%clk 0:00:08.4]} 45. Rd7+ {[%clk
0:00:48.5]} 45... Ne7 {[%clk 0:00:08.2]} 46. Rb7 {[%clk 0:00:47.2]} 46... Rc6
{[%clk 0:00:08.2]} 47. g4 {[%clk 0:00:46.9]} 47... h6 {[%clk 0:00:09.1]} 48. g5
{[%clk 0:00:44.2]} 48... hxg5+ {[%clk 0:00:10]} 49. hxg5 {[%clk 0:00:45.1]}
49... Ke6 {[%clk 0:00:09.8]} 50. c4 {[%clk 0:00:44.4]} 50... Rd6 {[%clk
0:00:09.4]} 51. b3 {[%clk 0:00:44.9]} 51... Ng6+ {[%clk 0:00:08.9]} 52. Kg4
{[%clk 0:00:43.9]} 52... Ke5 {[%clk 0:00:09.3]} 53. Kh5 {[%clk 0:00:39.1]} 53...
Kd4 {[%clk 0:00:09.4]} 54. Rg7 {[%clk 0:00:38.2]} 54... Nf4+ {[%clk 0:00:09.4]}
55. Kg4 {[%clk 0:00:38.3]} 55... Ng6 {[%clk 0:00:09.4]} 56. Kh5 {[%clk
0:00:38.2]} 56... Ne5 {[%clk 0:00:09.5]} 57. Re7 {[%clk 0:00:34.6]} 57... a4
{[%clk 0:00:09.3]} 58. bxa4 {[%clk 0:00:29.3]} 58... Nxc4 {[%clk 0:00:08.4]} 59.
g6 {[%clk 0:00:29.2]} 59... Ne5 {[%clk 0:00:08.3]} 60. g7 {[%clk 0:00:29.4]}
60... Rd8 {[%clk 0:00:08]} 61. Re6 {[%clk 0:00:24.4]} 61... Rg8 {[%clk
0:00:05.8]} 62. Kh6 {[%clk 0:00:24.2]} 62... Nd7 {[%clk 0:00:04.3]} 63. Rd6+
{[%clk 0:00:23.7]} 63... Kc4 {[%clk 0:00:03.7]} 64. Rxd7 {[%clk 0:00:24.1]}
64... Kb4 {[%clk 0:00:04.3]} 1-0

[Event "*** Titled Tuesday Blitz"]
[Site "Chess.com"]
[Date "2020.12.29"]
[Round "3"]
[White "Rsnr"]
[Black "peixe64"]
[Result "1-0"]
[WhiteElo "2794"]
[BlackElo "2445"]
[TimeControl "180+1"]
[EndTime "10:29:35 PST"]
[Termination "Rsnr won on time"]

1. b3 {[%clk 0:03:00.9]} 1... e5 {[%clk 0:02:59.5]} 2. Bb2 {[%clk 0:03:01.8]}
2... Nc6 {[%clk 0:02:59.5]} 3. e3 {[%clk 0:03:02.3]} 3... Nf6 {[%clk 0:02:59.4]}
4. Bb5 {[%clk 0:03:01.8]} 4... Bd6 {[%clk 0:02:59.3]} 5. Na3 {[%clk 0:03:02.2]}
5... a6 {[%clk 0:02:56.2]} 6. Bxc6 {[%clk 0:03:00.9]} 6... dxc6 {[%clk
0:02:56.2]} 7. Nc4 {[%clk 0:03:01.2]} 7... Qe7 {[%clk 0:02:54.6]} 8. Ne2 {[%clk
0:02:09.6]} 8... O-O {[%clk 0:02:48.3]} 9. O-O {[%clk 0:02:09.4]} 9... Bg4
{[%clk 0:02:31.1]} 10. f3 {[%clk 0:02:07.2]} 10... Bh5 {[%clk 0:02:30.6]} 11.
Ng3 {[%clk 0:01:57.2]} 11... Bg6 {[%clk 0:02:29.4]} 12. Qe2 {[%clk 0:01:57.9]}
12... Rfe8 {[%clk 0:02:22]} 13. Nxd6 {[%clk 0:01:55.9]} 13... cxd6 {[%clk
0:02:20.7]} 14. e4 {[%clk 0:01:52.7]} 14... d5 {[%clk 0:02:04.6]} 15. d3 {[%clk
0:01:53.2]} 15... Rad8 {[%clk 0:02:01]} 16. a4 {[%clk 0:01:52.7]} 16... h5
{[%clk 0:01:47.6]} 17. Qe3 {[%clk 0:01:19]} 17... d4 {[%clk 0:01:33.8]} 18. Qg5
{[%clk 0:01:14.8]} 18... Nh7 {[%clk 0:01:15.8]} 19. Qxe7 {[%clk 0:01:14.5]}
19... Rxe7 {[%clk 0:01:15.6]} 20. f4 {[%clk 0:01:15.4]} 20... exf4 {[%clk
0:00:58.5]} 21. Ne2 {[%clk 0:01:12.1]} 21... Nf6 {[%clk 0:00:51.5]} 22. Nxd4
{[%clk 0:01:06.2]} 22... c5 {[%clk 0:00:34.8]} 23. Ne2 {[%clk 0:01:01.9]} 23...
Ng4 {[%clk 0:00:26.9]} 24. Nxf4 {[%clk 0:01:02]} 24... Ne3 {[%clk 0:00:26.2]}
25. Rf2 {[%clk 0:01:02.6]} 25... Ng4 {[%clk 0:00:23.1]} 26. Re2 {[%clk
0:01:02.3]} 26... Red7 {[%clk 0:00:11.4]} 27. h3 {[%clk 0:01:00.2]} 27... Nf6
{[%clk 0:00:10.4]} 28. Bxf6 {[%clk 0:01:00.4]} 28... gxf6 {[%clk 0:00:10.8]} 29.
Rf1 {[%clk 0:00:59.9]} 29... Kg7 {[%clk 0:00:09.7]} 30. Ref2 {[%clk 0:00:58.2]}
30... Rd6 {[%clk 0:00:08.3]} 31. Kh2 {[%clk 0:00:52]} 31... Re8 {[%clk
0:00:06.7]} 32. a5 {[%clk 0:00:49.9]} 32... Re5 {[%clk 0:00:03.6]} 33. Nd5
{[%clk 0:00:45]} 33... f5 {[%clk 0:00:03.6]} 34. Ne3 {[%clk 0:00:45.8]} 34...
fxe4 {[%clk 0:00:03.6]} 35. Nc4 {[%clk 0:00:46.6]} 35... Rde6 {[%clk 0:00:03.3]}
36. Nxe5 {[%clk 0:00:45.3]} 36... Rxe5 {[%clk 0:00:03.9]} 37. dxe4 {[%clk
0:00:45.9]} 37... Rxe4 {[%clk 0:00:04.6]} 38. c4 {[%clk 0:00:41.9]} 38... Re3
{[%clk 0:00:04.9]} 39. Rf3 {[%clk 0:00:42.5]} 39... Re2 {[%clk 0:00:05.4]} 40.
R1f2 {[%clk 0:00:43.2]} 40... Re1 {[%clk 0:00:05.5]} 41. Rd2 {[%clk 0:00:43.5]}
41... Ra1 {[%clk 0:00:06]} 42. Rd7 {[%clk 0:00:31.8]} 42... Be4 {[%clk
0:00:06.5]} 43. Rg3+ {[%clk 0:00:24.6]} 43... Kf6 {[%clk 0:00:06.6]} 44. Rc7
{[%clk 0:00:22.2]} 44... Bc6 {[%clk 0:00:06.4]} 45. h4 {[%clk 0:00:15.5]} 45...
Rxa5 {[%clk 0:00:06.9]} 46. Rg5 {[%clk 0:00:16.2]} 46... Ra3 {[%clk 0:00:07]}
47. Rxh5 {[%clk 0:00:10.6]} 47... Rxb3 {[%clk 0:00:07.5]} 48. Rxc5 {[%clk
0:00:11.3]} 48... Re3 {[%clk 0:00:06.5]} 49. Rg5 {[%clk 0:00:09.4]} 49... Re4
{[%clk 0:00:06.3]} 50. g3 {[%clk 0:00:07.4]} 50... Rxc4 {[%clk 0:00:06.8]} 51.
Kg1 {[%clk 0:00:03.7]} 51... Rc2 {[%clk 0:00:06.9]} 52. Rc8 {[%clk 0:00:02.6]}
52... Rc1+ {[%clk 0:00:07.1]} 53. Kf2 {[%clk 0:00:02.7]} 53... Rc2+ {[%clk
0:00:07.8]} 54. Ke3 {[%clk 0:00:03.4]} 54... Rc3+ {[%clk 0:00:08.2]} 55. Kd4
{[%clk 0:00:04.1]} 55... Rf3 {[%clk 0:00:07.9]} 56. Rh8 {[%clk 0:00:04.2]} 56...
Rf5 {[%clk 0:00:08]} 57. Rh6+ {[%clk 0:00:04.3]} 57... Ke7 {[%clk 0:00:06.5]}
58. Rxf5 {[%clk 0:00:05]} 1-0